bitfinex-derivatives/quotes_ETHF0:USTF0_20241104
["timestamp","ask_amount","ask_price","bid_price","bid_amount"]
[1730740892448,4.4244,2418.3,2417.9,1.03462]
[1730740892650,3.2078,2418.5,2418.4,0.41376]
[1730740892848,1.03425,2418.8,2418.4,0.41376]
[1730740892849,4.4883,2418.8,2418.7,0.41371]
[1730740893044,2.2283,2418.8,2418.7,0.41371]
[1730740893250,3.2078,2418.9,2418.7,3.58845862]
[1730740893447,3.2078,2418.9,2418.8,0.41369]
[1730740893948,3.2078,2418.9,2418.6,0.41371]
[1730740893949,3.62148,2418.9,2418.6,0.41371]
[1730740894152,2.1838,2418.8,2418.7,0.41369]
[1730740894546,2.1838,2418.8,2418.3,0.19936568]
[1730740894853,2.1838,2418.8,2418.7,0.41371]
[1730740895053,2.1838,2418.8,2418.5,2.96821354]
[1730740895254,2.1838,2418.8,2418.7,0.41371]
[1730740895649,1.03428,2418.7,2418.0,1.27964295]
[1730740895848,3.2078,2418.2,2418.1,0.4138]
[1730740896146,3.2078,2418.2,2418.1,0.41381]
[1730740896452,44.0078,2418.2,2418.1,0.41381]
[1730740896646,40.8,2418.2,2418.1,4.7508732]
[1730740896850,40.8,2418.2,2418.1,5.30628129]
[1730740897249,40.8,2418.2,2418.1,5.10441809]
[1730740897648,3.2078,2418.4,2418.1,5.10441809]
[1730740897649,3.2078,2418.4,2418.3,0.41378]
[1730740897948,2.81044,2418.6,2418.4,0.41376]
[1730740898251,40.8,2418.5,2418.4,0.41376]
[1730740898965,3.2078,2418.7,2418.6,0.41373]
[1730740899250,3.62151,2418.7,2418.5,0.41373]
[1730740899442,3.2078,2418.7,2418.6,0.41373]
[1730740899843,3.62152,2418.7,2418.5,0.41373]
[1730740900048,3.2078,2418.7,2418.2,1.03449]
[1730740900249,3.2078,2418.7,2418.1,1.03453]
[1730740900451,3.2078,2418.4,2418.3,0.41378]
[1730740902156,9.6795,2418.4,2418.0,0.20181384]
[1730740902355,5.5443,2418.4,2418.3,0.41378]
[1730740902559,5.5443,2418.4,2417.8,1.07782911]
[1730740902756,3.2078,2418.1,2418.0,0.41383]
[1730740904253,3.2078,2418.1,2418.0,4.54903]
[1730740904959,3.2078,2418.1,2418.0,0.41383]
[1730740905556,3.2078,2418.1,2418.0,0.9664832]
[1730740906552,2.3695,2418.7,2418.1,1.03452]
[1730740906761,2.2776,2418.6,2418.2,0.5526532]
[1730740906966,2.2776,2418.6,2418.5,0.41374]
[1730740907150,2.2776,2418.6,2418.1,1.03452]
[1730740907349,2.2776,2418.6,2418.2,0.5525179]
[1730740907664,2.2776,2418.6,2418.0,5.08148982]
[1730740907854,2.69134,2418.6,2418.4,0.41375]
[1730740908056,3.2078,2418.5,2418.1,1.03453]
[1730740908366,3.2078,2418.5,2418.4,0.41376]
[1730740908661,3.62155,2418.5,2418.3,0.41377]
[1730740908864,3.2078,2418.5,2418.4,0.41376]
[1730740909556,2.69133,2418.6,2418.4,0.41375]
[1730740909763,2.2776,2418.6,2418.5,0.41374]
[1730740911166,3.2078,2418.8,2418.7,0.41371]
[1730740911965,2.5212,2419.0,2418.9,0.41367]
[1730740913366,40.8,2419.2,2419.1,0.41364]
[1730740913559,2.13344264,2419.4,2418.8,1.03424]
[1730740913952,2.13344264,2419.4,2419.3,0.41361]
[1730740914162,2.13344264,2419.4,2419.3,4.00206862]
[1730740914357,2.13344264,2419.4,2419.3,8.13566862]
[1730740914754,2.13344264,2419.4,2419.3,11.25420402]
[1730740914955,2.13344264,2419.4,2419.3,14.46200402]
[1730740915152,2.6668033,2419.7,2419.3,11.25420402]
[1730740915358,3.2078,2420.1,2419.6,3.58845862]
[1730740915859,3.2078,2420.0,2419.4,3.58845862]
[1730740916055,5.7319,2420.0,2419.4,0.41358]
[1730740916256,0.41359,2419.5,2419.3,1.0792012]
[1730740916565,0.41359,2419.4,2419.3,1.0792012]
[1730740916866,5.7631,2419.4,2419.3,1.0792012]
[1730740917065,10.31029,2419.4,2419.3,1.0792012]
[1730740917363,10.31029,2419.4,2419.1,1.61880181]
[1730740917562,5.7631,2419.4,2419.1,1.61880181]
[1730740917770,2.5127,2419.3,2419.2,0.41362]
[1730740917970,2.5127,2419.3,2419.1,1.61880181]
[1730740918262,2.5127,2419.3,2419.2,0.41362]
[1730740918768,43.3127,2419.3,2419.2,0.41362]
[1730740921766,43.3127,2419.3,2419.1,0.41363]
[1730740921970,43.72631,2419.3,2419.1,0.41363]
[1730740922172,43.3127,2419.3,2419.2,0.41362]
[1730740922466,3.2078,2419.8,2419.7,0.41354]
[1730740922668,5.6528,2419.8,2418.9,0.55069876]
[1730740922869,3.2078,2419.5,2419.0,1.03414]
[1730740923568,3.2078,2419.5,2419.3,0.4136]
[1730740923776,3.2078,2419.5,2419.1,0.41364]
[1730740923962,3.2078,2419.5,2419.4,0.41359]
[1730740924164,3.2078,2419.5,2419.3,0.41359]
[1730740924484,3.2078,2419.5,2419.4,0.41359]
[1730740924767,3.2078,2419.5,2419.0,1.03414]
[1730740924967,3.2078,2419.5,2419.4,0.41359]
[1730740924968,5.702,2419.5,2419.4,0.41359]
[1730740925667,3.2078,2419.5,2419.4,0.41359]
[1730740925874,5.6528,2419.8,2419.4,8.13484862]
[1730740926070,5.6528,2419.8,2419.7,0.41354]
[1730740926662,2.445,2419.8,2419.7,0.41354]
[1730740926863,2.445,2419.8,2419.7,4.54634]
[1730740927170,5.728,2420.1,2420.0,0.41349]
[1730740927369,2.5202,2420.1,2420.0,0.41349]
[1730740927564,43.73367,2420.1,2419.9,0.4135]
[1730740927771,43.73367,2420.1,2419.9,0.41349]
[1730740927772,2.5202,2420.1,2419.9,0.41349]
[1730740927975,2.93367,2420.1,2419.9,0.41349]
[1730740928171,2.5202,2420.1,2419.9,0.41349]
[1730740928474,2.5202,2420.1,2420.0,0.41349]
[1730740928676,2.5202,2420.1,2419.4,3.58845862]
[1730740928978,3.2078,2419.9,2419.4,1.03397]
[1730740929364,3.62131,2419.9,2419.7,0.41353]
[1730740929670,3.2078,2419.9,2419.2,3.2078]
[1730740929876,3.2078,2419.6,2419.2,0.41362]
[1730740930068,3.62141,2419.3,2419.1,0.41363]
[1730740930378,3.2078,2419.3,2418.9,3.58845862]
[1730740930882,3.2078,2419.3,2419.2,0.41362]
[1730740931067,7.5006,2419.5,2419.4,0.41359]
[1730740931265,0.4136,2419.4,2419.2,0.41362]
[1730740931473,0.4136,2419.4,2419.3,0.41361]
[1730740931772,7.5006,2419.5,2419.2,0.41361]
[1730740931996,3.2078,2419.3,2418.9,3.58845862]
[1730740932276,0.41362,2419.2,2418.8,1.03423]
[1730740932575,0.41362,2419.2,2419.1,0.41363]
[1730740932978,3.2078,2419.3,2418.8,1.03423]
[1730740933277,3.62141,2419.3,2419.2,0.41362]
[1730740933868,3.62141,2419.3,2418.9,1.03419]
[1730740933869,3.2078,2419.3,2418.9,1.03419]
[1730740934067,3.2078,2419.3,2419.2,0.41362]
[1730740934869,7.3414,2419.3,2418.7,2.4781]
[1730740935069,3.2078,2418.9,2418.3,1.61880181]
[1730740935264,5.101,2418.8,2418.5,0.41373]
[1730740935468,40.8,2418.7,2418.6,0.41371]
[1730740935671,0.41373,2418.6,2418.5,0.41374]
[1730740935877,41.21372,2418.7,2418.6,0.41373]
[1730740936070,40.8,2418.7,2418.6,0.41373]
[1730740937878,4.62243862,2419.5,2418.6,0.41373]
[1730740937879,3.62141,2419.3,2418.6,8.13658862]
[1730740938074,2.4317,2419.2,2419.1,0.41363]
[1730740938474,43.2317,2419.2,2419.1,0.41363]
[1730740938882,2.4317,2419.2,2419.1,0.41363]
[1730740939278,2.84532,2419.2,2419.1,0.41363]
[1730740939475,2.4317,2419.2,2419.1,0.41363]
[1730740939671,44.0078,2419.3,2419.2,0.41362]
[1730740939871,44.0078,2419.3,2419.2,4.00207862]
[1730740939872,3.2078,2419.3,2419.2,4.00207862]
[1730740940182,3.2078,2419.7,2419.6,0.41354]
[1730740940984,5.49149,2420.0,2419.8,0.41351]
[1730740940985,0.41351,2419.9,2419.8,0.41351]
[1730740941281,5.6165,2420.1,2420.0,0.41349]
[1730740941472,6.02998,2420.1,2419.6,1.0339]
[1730740941781,46.4165,2420.1,2420.0,0.41349]
[1730740941980,46.82997,2420.1,2419.5,4.62235862]
[1730740942187,46.4165,2420.1,2420.0,0.41349]
[1730740942580,46.82997,2420.1,2419.9,0.41349]
[1730740942886,46.4165,2420.1,2419.6,1.0339]
[1730740943083,5.6165,2420.1,2419.6,1.0339]
[1730740943387,5.6165,2420.1,2420.0,0.41349]
[1730740943880,3.2078,2420.4,2420.3,0.41344]
[1730740944074,5.62003603,2421.4,2420.4,0.41341]
[1730740944075,3.2078,2420.9,2420.4,0.41341]
[1730740944277,3.2078,2420.9,2420.1,9.0667]
[1730740944278,0.41338,2420.7,2420.1,8.52315862]
[1730740944471,0.41337,2420.8,2420.5,0.4134]
[1730740944672,0.41337,2420.7,2420.5,0.4134]
[1730740944883,9.23775862,2420.9,2420.1,4.9347]
[1730740945080,3.2078,2420.6,2420.1,0.41346]
[1730740945283,0.41342,2420.4,2420.1,0.41346]
[1730740945492,0.05665063,2420.5,2419.8,7.83004862]
[1730740945678,0.47005063,2420.5,2420.2,0.41344]
[1730740945886,0.05665063,2420.5,2420.0,0.41348]
[1730740946082,2.4572,2420.4,2419.8,6.79625862]
[1730740946289,2.4572,2420.4,2420.3,0.35678937]
[1730740946581,0.41341,2420.5,2420.2,0.41345]
[1730740946786,3.62119,2420.6,2420.1,3.58845862]
[1730740947185,3.62119,2420.6,2420.4,0.41341]
[1730740947384,3.62119,2420.6,2420.3,0.41343]
[1730740947583,3.2078,2420.6,2420.5,0.4134]
[1730740948387,3.2078,2420.9,2420.8,0.41335]
[1730740948585,40.8,2421.1,2420.7,3.58845862]
[1730740948794,40.8,2421.1,2421.0,0.41332]
[1730740949987,40.8,2421.1,2421.0,4.54372]
[1730740950491,40.8,2421.1,2421.0,7.01172]
[1730740950689,3.2078,2421.3,2421.2,0.41328]
[1730740951095,3.2078,2421.3,2421.0,2.468]
[1730740951293,40.8,2421.2,2421.0,2.468]
[1730740951590,40.8,2421.2,2421.1,0.4133]
[1730740951890,40.8,2421.2,2421.0,2.468]
[1730740951891,40.8,2421.2,2421.0,2.88131]
[1730740952092,40.8,2421.2,2421.1,0.4133]
[1730740952292,40.8,2421.2,2421.0,2.468]
[1730740952492,40.8,2421.2,2421.1,0.4133]
[1730740952796,40.8,2421.2,2420.6,3.2078]
[1730740952995,4.24125,2420.7,2420.0,0.208]
[1730740953292,0.41345,2420.2,2419.9,3.6213]
[1730740953492,0.41345,2420.2,2419.9,3.2078]
[1730740953687,4.7398,2420.5,2419.9,3.2078]
[1730740953895,40.8,2420.2,2420.1,1.29487018]
[1730740954196,40.8,2420.2,2420.1,0.41347]
[1730740954506,40.8,2420.2,2420.0,0.41347]
[1730740954507,41.21346,2420.2,2420.0,0.41347]
[1730740954682,40.8,2420.2,2419.7,3.58845862]
[1730740954993,40.8,2420.2,2420.0,0.41349]
[1730740955188,40.8,2420.2,2419.7,4.62229862]
[1730740955384,40.8,2420.2,2420.1,0.41347]
[1730740955682,41.83297248,2420.2,2420.1,0.41347]
[1730740955885,41.83297248,2420.2,2419.7,4.62229862]
[1730740956189,41.83297248,2420.2,2420.0,0.41347]
[1730740956387,41.83297248,2420.2,2420.0,0.41348]
[1730740956696,41.83297248,2420.2,2420.1,0.41347]
[1730740960793,41.83297248,2420.2,2419.7,7.83009862]
[1730740960992,41.83297248,2420.2,2419.9,0.41349]
[1730740960993,42.24643248,2420.2,2419.9,0.41349]
[1730740961386,41.83297248,2420.2,2419.7,3.2078]
[1730740961592,3.62129,2420.0,2419.8,0.41352]
[1730740961793,2.3429,2419.9,2419.8,0.41352]
[1730740961994,3.2078,2420.0,2419.9,0.4135]
[1730740962195,41.83297248,2420.2,2419.7,1.03385]
[1730740962393,41.83297248,2420.2,2420.1,0.41347]
[1730740962791,1.03297248,2420.2,2420.1,0.41347]
[1730740963286,41.83297248,2420.2,2420.1,0.41347]
[1730740963488,1.03297248,2420.2,2420.1,0.41347]
[1730740964892,3.54107248,2420.2,2420.1,0.41347]
[1730740968804,3.95452248,2420.2,2420.1,0.41347]
[1730740969304,0.41348,2420.1,2420.0,0.41347]
[1730740969602,7.67307248,2420.2,2419.6,0.41356]
[1730740969603,0.41353,2419.8,2419.6,0.41356]
[1730740969901,40.8,2419.7,2419.6,0.41356]
[1730740974105,5.6646,2419.9,2419.8,0.41352]
[1730740974298,2.4568,2419.9,2419.8,0.41352]
[1730740974798,8.53257248,2420.2,2420.1,0.41347]
[1730740975303,49.33257248,2420.2,2420.1,0.41347]
[1730740977503,49.74602248,2420.2,2420.1,0.41347]
[1730740977707,49.33257248,2420.2,2420.1,0.41347]
[1730740979002,49.74602248,2420.2,2420.1,0.41347]
[1730740980207,52.95382248,2420.2,2420.1,0.41347]
[1730740980808,0.4135,2420.1,2420.0,0.41348]
[1730740981706,52.54037248,2420.2,2419.8,0.41352]
[1730740981910,3.2078,2419.9,2419.8,0.41352]
[1730740982106,49.33257248,2420.2,2419.8,8.13477862]
[1730740982107,1.03297248,2420.2,2419.8,8.13477862]
[1730740982406,2.48e-06,2420.2,2420.1,4.00192862]
[1730740982705,2.48e-06,2420.2,2420.1,4.55160719]
[1730740982901,2.48e-06,2420.2,2420.1,8.68360719]
[1730740983396,2.48e-06,2420.2,2420.1,5.09514857]
[1730740983805,2.48e-06,2420.2,2420.1,4.54547]
[1730740984002,2.48e-06,2420.2,2420.1,0.41347]
[1730740984512,2.48e-06,2420.2,2420.1,0.96364217]
[1730740984904,2.48e-06,2420.2,2420.1,0.41347]
[1730740985209,2.48e-06,2420.2,2420.1,0.96365532]
[1730740987110,2.48e-06,2420.2,2420.1,0.41347]
[1730740987308,2.48e-06,2420.2,2420.1,0.96399613]
[1730740987612,4.13200248,2420.2,2420.1,0.41347]
[1730740988205,7.75330248,2420.2,2419.8,0.41352]
[1730740988405,3.62130248,2420.2,2419.8,0.41352]
[1730740988911,40.8,2420.1,2420.0,0.41352]
[1730740989407,0.41355,2419.9,2419.8,0.41355]
[1730740989614,3.62135,2419.9,2419.8,0.41355]
[1730740989816,3.2078,2419.9,2419.8,0.41355]
[1730740990110,7.3406,2419.9,2419.8,0.41355]
[1730740990505,48.1406,2419.9,2419.8,0.41355]
[1730740991313,44.0078,2419.9,2419.8,0.41355]
[1730740994108,2.48e-06,2420.2,2419.8,0.41355]
[1730740994109,3.20780248,2420.2,2420.1,0.41351]
[1730740994508,44.00780248,2420.2,2420.1,0.41351]
[1730740995909,3.20780248,2420.2,2420.1,0.41351]
[1730740996611,7.75329248,2420.2,2420.1,0.41351]
[1730740997116,0.41353,2420.1,2420.0,0.41352]
[1730740997416,4.132,2420.1,2420.0,0.41352]
[1730740997717,4.54551,2420.1,2420.0,0.41352]
[1730740997906,0.41351,2420.1,2420.0,0.41352]
[1730740998105,5.75220248,2420.2,2419.8,1.03389]
[1730740998305,5.0762,2420.0,2419.9,0.41355]
[1730740998512,5.0762,2420.0,2419.9,0.96522716]
[1730740998715,5.0762,2420.0,2419.9,0.41355]
[1730740998909,50.42173,2420.0,2419.9,0.96522242]
[1730740999102,50.42173,2420.0,2419.4,0.41361]
[1730740999103,0.41363,2419.5,2419.4,0.41361]
[1730740999309,0.41363,2419.5,2419.4,0.96535744]
[1730740999310,3.2078,2419.5,2419.4,0.96535744]
[1730740999514,3.2078,2419.5,2419.4,0.41361]
[1730740999709,8.1048,2419.5,2419.4,0.41361]
[1730740999910,12.2376,2419.5,2419.1,1.0342]
[1730741000117,0.41365,2419.4,2419.3,0.41363]
[1730741000307,2.95875,2419.4,2419.3,0.41363]
[1730741000512,7.09235,2419.4,2419.3,0.41363]
[1730741001514,6.6787,2419.4,2419.3,0.41363]
[1730741001816,2.5451,2419.4,2419.3,0.41363]
[1730741002015,8.1048,2419.5,2419.4,0.41363]
[1730741002416,3.2078,2419.8,2419.3,4.8185]
[1730741002618,3.2078,2419.8,2419.7,0.41358]
[1730741003114,7.3406,2419.8,2419.7,0.41358]
[1730741004219,3.2078,2419.8,2419.7,0.41358]
[1730741008518,3.2078,2419.8,2419.7,5.09748263]
[1730741008720,2.48e-06,2420.2,2419.7,4.68390263]
[1730741009020,2.48e-06,2420.2,2420.1,0.41351]
[1730741009322,40.80000248,2420.2,2420.1,0.41351]
[1730741009811,41.21349248,2420.2,2420.1,0.41351]
[1730741010017,40.80000248,2420.2,2420.1,0.41351]
[1730741010212,41.21349248,2420.2,2420.1,0.41351]
[1730741011515,48.5204611,2420.2,2419.3,2.2968]
[1730741011717,3.62138,2419.8,2419.7,0.41356]
[1730741012119,7.75418,2419.8,2419.7,0.41356]
[1730741012520,0.41364,2419.5,2419.4,0.41362]
[1730741012724,3.62144,2419.5,2419.4,0.41362]
[1730741012927,7.75424,2419.5,2419.4,0.41362]
[1730741013119,44.42144,2419.5,2419.4,0.41362]
[1730741013325,48.55424,2419.5,2419.4,0.41362]
[1730741014533,48.55421,2419.5,2419.4,0.41362]
[1730741015929,45.34641,2419.5,2419.4,0.41362]
[1730741016125,44.42141,2419.5,2419.4,0.41362]
[1730741016331,44.0078,2419.5,2419.4,0.41362]
[1730741018221,44.42141,2419.5,2419.4,0.41362]
[1730741019119,41.21361,2419.5,2419.4,0.41362]
[1730741019329,44.42141,2419.5,2419.4,0.41362]
[1730741019826,44.0078,2419.5,2419.4,0.41362]
[1730741020422,44.42141,2419.5,2419.4,0.41362]
[1730741021534,44.0078,2419.5,2419.4,0.41362]
[1730741021732,44.42141,2419.5,2419.4,0.41362]
[1730741022536,44.0078,2419.5,2419.4,0.41362]
[1730741022731,44.42141,2419.5,2419.4,0.41362]
[1730741023629,48.1406,2419.5,2418.8,2.3481]
[1730741023822,3.62146,2419.2,2419.1,0.41366]
[1730741024436,3.2078,2419.2,2419.1,0.41366]
[1730741026839,3.62146,2419.2,2419.1,0.41366]
[1730741027830,0.41366,2419.2,2419.1,0.41366]
[1730741028126,3.62146,2419.2,2419.1,0.41366]
[1730741028634,0.41369,2419.1,2419.0,0.41369]
[1730741028830,1.03426,2419.0,2418.4,1.03447]
[1730741029043,0.41376,2418.7,2418.6,0.41375]
[1730741029229,6.5266227,2418.8,2418.7,0.41375]
[1730741030237,6.5266227,2418.8,2418.5,0.41377]
[1730741030238,0.41378,2418.6,2418.5,0.41377]
[1730741030431,3.3188627,2418.6,2418.5,0.41377]
[1730741030634,7.0394827,2418.6,2418.1,3.48993]
[1730741030937,3.2078,2418.4,2418.3,0.41382]
[1730741031237,44.0078,2418.4,2418.3,0.41382]
[1730741031839,40.8,2418.4,2418.3,0.41382]
[1730741032430,40.8,2418.4,2418.3,4.54902]
[1730741033043,3.2078,2418.7,2418.6,0.41377]
[1730741033643,3.2078,2419.0,2418.9,0.41372]
[1730741035137,3.2078,2419.4,2418.9,4.1344]
[1730741035436,3.2078,2419.4,2419.3,0.41365]
[1730741038641,3.62143,2419.4,2419.3,0.41365]
[1730741038837,3.2078,2419.4,2419.3,0.41365]
[1730741042046,44.0078,2419.7,2419.6,0.4136]
[1730741043037,44.0078,2419.7,2419.6,2.4203]
[1730741043338,1.03297496,2420.2,2420.1,0.41351]
[1730741044135,4.1176,2420.9,2419.9,2.0322]
[1730741044136,3.2078,2420.9,2420.8,0.41339]
[1730741044336,3.2078,2420.9,2420.3,4.2415]
[1730741044337,44.0078,2420.9,2420.3,4.2415]
[1730741044532,44.0078,2420.9,2420.1,1.03376]
[1730741044533,3.5769755,2420.7,2420.4,2.0739]
[1730741044734,2.1309,2420.8,2420.7,0.41341]
[1730741044942,44.0078,2420.9,2420.4,2.0739]
[1730741045242,40.8,2420.9,2420.8,0.41339]
[1730741047434,45.34377,2420.9,2420.8,0.41339]
[1730741047635,44.9304,2420.9,2420.8,0.41339]
[1730741047843,40.8,2420.9,2420.8,0.41339]
[1730741048241,48.1382,2420.9,2420.1,1.03379]
[1730741048444,0.41346,2420.5,2420.4,0.41346]
[1730741048740,3.9903955,2420.7,2420.1,1.4473]
[1730741048941,3.9903955,2420.7,2420.6,0.41342]
[1730741048942,0.41342,2420.7,2420.6,0.41342]
[1730741049138,44.3769755,2420.9,2420.3,1.03369]
[1730741049333,44.3769755,2420.9,2420.2,1.03374]
[1730741049640,44.3769755,2420.9,2420.5,1.0336]
[1730741049841,44.3769755,2420.9,2420.4,1.03366]
[1730741050343,40.8,2420.9,2420.8,0.41339]
[1730741050540,41.21337,2420.9,2420.8,0.41339]
[1730741050740,0.41341,2420.8,2420.7,0.41341]
[1730741050937,44.3769755,2420.9,2420.3,1.0337]
[1730741051137,44.7903555,2420.9,2420.8,0.41339]
[1730741051541,0.41342,2420.7,2420.6,0.41342]
[1730741051848,0.41343,2420.6,2420.2,1.03373]
[1730741052036,0.41341,2420.7,2420.6,0.41342]
[1730741052439,40.8,2420.9,2420.1,1.03377]
[1730741052644,40.8,2420.9,2420.8,0.41339]
[1730741052837,41.21337,2420.9,2420.8,0.41339]
[1730741053037,3.2078,2421.4,2420.8,4.54379]
[1730741053344,3.2078,2421.4,2421.3,0.41331]
[1730741053643,44.0078,2421.4,2421.3,0.41331]
[1730741054248,44.42109,2421.4,2421.3,0.41331]
[1730741054543,44.42109,2421.4,2421.2,0.41332]
[1730741054544,0.41332,2421.3,2421.2,0.41332]
[1730741054837,51.7143755,2421.4,2420.9,1.9714]
[1730741054838,44.0078,2421.4,2420.9,1.9714]
[1730741055040,44.4211,2421.4,2421.3,0.41331]
[1730741056437,44.0078,2421.4,2421.3,0.41331]
[1730741057743,0.41332,2421.3,2421.2,0.41331]
[1730741057939,44.4211,2421.4,2421.3,0.41331]
[1730741058144,44.0078,2421.4,2421.3,0.41331]
[1730741058341,44.0078,2421.4,2421.0,2.1027]
[1730741058544,44.42109,2421.4,2421.3,0.41331]
[1730741058745,44.0078,2421.4,2421.0,2.1027]
[1730741058942,0.41332,2421.3,2421.2,0.41331]
[1730741059242,2.50711,2421.3,2421.2,0.41331]
[1730741060345,2.0938,2421.3,2420.9,6.21263]
[1730741060645,0.41333,2421.2,2421.1,0.41332]
[1730741061843,2.0938,2421.3,2421.2,0.41332]
[1730741061844,2.50712,2421.3,2421.2,0.41332]
[1730741062547,0.41334,2421.2,2421.1,0.41333]
[1730741062748,2.0938,2421.3,2421.2,0.41332]
[1730741063952,2.50711,2421.3,2421.2,0.41332]
[1730741064152,2.0938,2421.3,2421.2,0.41332]
[1730741064352,2.50711,2421.3,2421.2,0.41332]
[1730741066271,0.41336,2421.1,2421.0,0.41335]
[1730741067061,0.41334,2421.2,2421.1,0.41333]
[1730741067444,4.54374,2421.2,2421.1,0.41333]
[1730741067651,0.41334,2421.2,2421.1,0.41333]
[1730741067850,4.54374,2421.2,2421.1,0.41333]
[1730741068455,4.1304,2421.2,2421.1,0.41333]
[1730741068648,4.54372,2421.2,2421.1,0.41333]
[1730741069555,0.41337,2421.0,2420.9,0.41336]
[1730741070250,7.4313,2421.1,2420.6,4.24135]
[1730741070456,2.0938,2421.3,2420.6,6.11099155]
[1730741070652,41.21329,2421.4,2421.3,0.41331]
[1730741070861,45.34289,2421.4,2421.3,0.41331]
[1730741071447,0.41333,2421.3,2421.2,0.41331]
[1730741071649,40.8,2421.4,2421.0,1.03339]
[1730741071847,41.21329,2421.4,2421.3,0.41331]
[1730741072156,40.8,2421.4,2421.3,0.41331]
[1730741074553,0.41327,2421.5,2421.1,5.07214]
[1730741074757,1.03233265,2421.7,2421.6,0.41325]
[1730741075054,1.03233265,2421.7,2421.6,3.31644155]
[1730741075255,1.03233265,2421.7,2421.6,7.44604155]
[1730741075555,1.03233265,2421.7,2421.6,9.58224155]
[1730741077457,0.41239584,2421.7,2421.6,6.67905]
[1730741077854,0.41239584,2421.7,2421.6,2.54945]
[1730741078457,0.41239584,2421.7,2421.6,6.67905]
[1730741078856,40.8,2422.3,2422.2,0.41315]
[1730741079155,40.8,2422.3,2421.7,3.00437]
[1730741079357,0.4132,2422.0,2421.9,0.4132]
[1730741079659,0.41322,2421.9,2421.8,0.41321]
[1730741079864,0.41319,2422.0,2421.9,0.41319]
[1730741080056,2.0765,2422.2,2421.6,3.16933]
[1730741080057,2.44608,2422.1,2422.0,0.41319]
[1730741080561,2.44608,2422.1,2421.6,2.1362]
[1730741080562,0.41321,2421.9,2421.8,0.41321]
[1730741080754,2.0724,2422.0,2421.6,2.1362]
[1730741080956,0.41319,2422.0,2421.7,0.41324]
[1730741081160,0.41319,2422.0,2421.6,3.16933]
[1730741081161,2.0329,2422.0,2421.9,0.4132]
[1730741081462,2.44609,2422.0,2421.9,0.4132]
[1730741082864,2.0329,2422.0,2421.9,0.4132]
[1730741083168,2.44609,2422.0,2421.9,0.4132]
[1730741083663,2.44609,2422.0,2421.4,1.9713]
[1730741083664,13.97418697,2422.0,2421.4,1.9713]
[1730741083865,3.2078,2421.7,2421.4,1.9713]
[1730741084060,0.41326,2421.6,2421.5,0.41326]
[1730741084261,41.21326,2421.6,2421.5,0.41326]
[1730741084468,40.8,2421.6,2421.5,0.41326]
[1730741084859,41.21325,2421.6,2421.5,0.41326]
[1730741085160,44.9296,2421.6,2421.2,2.0734]
[1730741085353,40.8,2421.6,2421.5,0.41327]
[1730741088256,40.8,2421.6,2421.5,0.96297034]
[1730741090063,0.41319,2422.0,2421.9,0.41319]
[1730741090572,41.21319,2422.0,2421.9,0.41319]
[1730741090764,45.34199,2422.0,2421.9,0.41319]
[1730741091065,41.21319,2422.0,2421.9,0.41319]
[1730741091369,40.8,2422.0,2421.9,0.41319]
[1730741091869,3.2078,2422.1,2421.8,1.9704]
[1730741092071,3.2078,2422.7,2421.9,2.68982823]
[1730741092269,0.41312,2422.5,2422.4,0.4131]
[1730741092459,40.8,2422.5,2422.4,0.4131]
[1730741093469,41.2131,2422.5,2422.4,0.4131]
[1730741094872,40.8,2422.5,2422.4,4.5411]
[1730741095069,40.8,2422.5,2422.4,0.4131]
[1730741095668,3.2078,2422.7,2422.5,0.41308]
[1730741095874,3.62087,2422.7,2422.6,0.41308]
[1730741096173,44.42087,2422.7,2422.6,0.41308]
[1730741096765,44.0078,2422.7,2422.6,0.41308]
[1730741097175,4.1674,2422.9,2422.3,2.1303]
[1730741097374,4.1674,2422.9,2422.8,0.41305]
[1730741097571,4.1674,2422.9,2422.7,0.41305]
[1730741097572,0.41306,2422.8,2422.7,0.41305]
[1730741097874,4.58044,2422.9,2422.8,0.41305]
[1730741098971,45.38044,2422.9,2422.8,0.41305]
[1730741099471,44.9674,2422.9,2422.4,3.05368]
[1730741099675,0.41306,2422.8,2422.7,0.41305]
[1730741100073,7.335,2422.8,2422.3,2.1303]
[1730741100370,0.41314,2422.4,2422.3,0.41313]
[1730741100573,0.41314,2422.4,2422.0,8.34527]
[1730741100769,3.2078,2422.5,2422.2,0.41314]
[1730741100977,0.41313,2422.4,2422.3,0.41312]
[1730741101579,41.21313,2422.4,2422.3,0.41312]
[1730741102777,0.41316,2422.3,2422.2,0.41314]
[1730741102983,2.58696,2422.3,2422.2,0.41314]
[1730741103270,8.4538,2422.3,2421.7,5.2861]
[1730741103475,0.4132,2422.0,2421.9,0.41319]
[1730741103670,7.5336,2422.3,2421.8,1.03306]
[1730741103983,0.41317,2422.2,2422.1,0.41316]
[1730741104277,4.3258,2422.3,2422.2,0.41315]
[1730741104471,40.8,2422.4,2422.3,0.41314]
[1730741104781,2.0615,2422.5,2422.4,0.41312]
[1730741105191,2.4746,2422.5,2422.4,0.41312]
[1730741105676,2.0615,2422.5,2422.4,0.41312]
[1730741105984,2.4746,2422.5,2422.4,0.41312]
[1730741106179,2.0615,2422.5,2422.4,0.41312]
[1730741106673,1.03190655,2422.7,2422.6,0.41308]
[1730741107582,1.44497655,2422.7,2422.6,0.41308]
[1730741108778,42.24497655,2422.7,2422.6,0.41308]
[1730741110779,0.41313,2422.4,2422.3,0.41312]
[1730741111077,45.95990655,2422.7,2422.5,0.41308]
[1730741111078,0.41309,2422.6,2422.5,0.41308]
[1730741111284,1.03190655,2422.7,2422.6,0.41308]